[Event "*** Titled Tuesday Blitz"]
[Site "Chess.com"]
[Date "2019.03.05"]
[Round "8"]
[White "ShadyH9"]
[Black "NateSolon"]
[Result "0-1"]
[WhiteElo "2300"]
[BlackElo "2534"]
[TimeControl "180+2"]
[EndTime "14:58:09 PST"]
[Termination "NateSolon won by resignation"]

1. d4 {[%clk 0:03:01.9]} 1... d5 {[%clk 0:03:00.4]} 2. Nf3 {[%clk 0:03:02.3]}
2... Nf6 {[%clk 0:03:01.5]} 3. e3 {[%clk 0:03:02.3]} 3... c5 {[%clk 0:02:56.9]}
4. c3 {[%clk 0:03:02.4]} 4... e6 {[%clk 0:02:57.4]} 5. Nbd2 {[%clk 0:03:01.5]}
5... Nc6 {[%clk 0:02:58.5]} 6. Bd3 {[%clk 0:03:02]} 6... Bd6 {[%clk 0:02:58.5]}
7. O-O {[%clk 0:03:01.2]} 7... O-O {[%clk 0:02:59.4]} 8. dxc5 {[%clk 0:03:01.8]}
8... Bxc5 {[%clk 0:03:00.4]} 9. b4 {[%clk 0:03:03.2]} 9... Bd6 {[%clk
0:02:58.3]} 10. a3 {[%clk 0:03:04.5]} 10... Qc7 {[%clk 0:02:29]} 11. Re1 {[%clk
0:02:48.9]} 11... Ne5 {[%clk 0:02:24]} 12. Qc2 {[%clk 0:02:06.9]} 12... Nxd3
{[%clk 0:02:21.3]} 13. Qxd3 {[%clk 0:02:08.8]} 13... b6 {[%clk 0:02:09]} 14. Bb2
{[%clk 0:02:03.7]} 14... Bb7 {[%clk 0:02:10.2]} 15. c4 {[%clk 0:02:00.3]} 15...
Qe7 {[%clk 0:01:40.3]} 16. cxd5 {[%clk 0:00:56.6]} 16... Nxd5 {[%clk 0:01:30]}
17. Ne4 {[%clk 0:00:56.7]} 17... Rad8 {[%clk 0:01:18.4]} 18. Nxd6 {[%clk
0:00:51.1]} 18... Qxd6 {[%clk 0:01:19.6]} 19. Ng5 {[%clk 0:00:39.2]} 19... f5
{[%clk 0:01:09.1]} 20. Qd4 {[%clk 0:00:21.1]} 20... Nf6 {[%clk 0:01:00.8]} 21.
Qxd6 {[%clk 0:00:10.4]} 21... Rxd6 {[%clk 0:01:02.7]} 22. Red1 {[%clk
0:00:10.4]} 22... Rfd8 {[%clk 0:01:02.5]} 23. Rxd6 {[%clk 0:00:10.7]} 23... Rxd6
{[%clk 0:01:04.4]} 24. Be5 {[%clk 0:00:08.5]} 24... Rc6 {[%clk 0:00:57.4]} 25.
Rd1 {[%clk 0:00:06.4]} 25... Nd5 {[%clk 0:00:52]} 26. h3 {[%clk 0:00:07.1]}
26... h6 {[%clk 0:00:51]} 27. Nf3 {[%clk 0:00:06]} 27... Kf7 {[%clk 0:00:35.5]}
28. Nd4 {[%clk 0:00:06.9]} 28... Rc4 {[%clk 0:00:29.6]} 29. Nb5 {[%clk
0:00:07.6]} 29... Kg6 {[%clk 0:00:27.6]} 30. Nd6 {[%clk 0:00:07.4]} 30... Rc7
{[%clk 0:00:28.8]} 31. Nxb7 {[%clk 0:00:03.9]} 31... Rxb7 {[%clk 0:00:30.7]} 32.
Rc1 {[%clk 0:00:04.6]} 32... Rd7 {[%clk 0:00:30.8]} 33. Kf1 {[%clk 0:00:04.7]}
33... Kf7 {[%clk 0:00:24.8]} 34. b5 {[%clk 0:00:05.4]} 34... g5 {[%clk
0:00:24.8]} 35. Ke2 {[%clk 0:00:05.9]} 35... f4 {[%clk 0:00:21.3]} 36. Rc6
{[%clk 0:00:05.4]} 36... Kg6 {[%clk 0:00:20.6]} 37. a4 {[%clk 0:00:05.5]} 37...
Kf5 {[%clk 0:00:21.5]} 38. Rc8 {[%clk 0:00:04.4]} 38... Kxe5 {[%clk 0:00:22.5]}
0-1

[Event "*** Titled Tuesday Blitz"]
[Site "Chess.com"]
[Date "2019.03.05"]
[Round "8"]
[White "SanchezKelvin"]
[Black "MaxiAMueller"]
[Result "1/2-1/2"]
[WhiteElo "2484"]
[BlackElo "2304"]
[TimeControl "180+2"]
[EndTime "14:58:11 PST"]
[Termination "Game drawn - insufficient material"]

1. d4 {[%clk 0:03:01.9]} 1... d5 {[%clk 0:03:00]} 2. c4 {[%clk 0:03:02]} 2...
dxc4 {[%clk 0:03:00.7]} 3. Nf3 {[%clk 0:03:02.3]} 3... Nf6 {[%clk 0:03:00.8]} 4.
Qa4+ {[%clk 0:03:03.3]} 4... c6 {[%clk 0:02:50.5]} 5. Qxc4 {[%clk 0:03:05.2]}
5... Bf5 {[%clk 0:02:44.8]} 6. Nbd2 {[%clk 0:03:04.3]} 6... e6 {[%clk
0:02:45.8]} 7. e3 {[%clk 0:02:56]} 7... Nbd7 {[%clk 0:02:32.1]} 8. Bd3 {[%clk
0:02:53.8]} 8... Bxd3 {[%clk 0:02:27.7]} 9. Qxd3 {[%clk 0:02:51.3]} 9... c5
{[%clk 0:02:27.8]} 10. O-O {[%clk 0:02:51.3]} 10... Be7 {[%clk 0:02:28.7]} 11.
b3 {[%clk 0:02:46.3]} 11... cxd4 {[%clk 0:02:25.6]} 12. Qxd4 {[%clk 0:02:45.7]}
12... Nc5 {[%clk 0:02:23.4]} 13. Ba3 {[%clk 0:02:43]} 13... Qxd4 {[%clk
0:02:14.2]} 14. Nxd4 {[%clk 0:02:42.1]} 14... Nce4 {[%clk 0:02:10.8]} 15. Bxe7
{[%clk 0:02:38.2]} 15... Nxd2 {[%clk 0:01:50.4]} 16. Rfd1 {[%clk 0:02:26.8]}
16... Kxe7 {[%clk 0:01:44.4]} 17. Rxd2 {[%clk 0:02:25.8]} 17... Rac8 {[%clk
0:01:44.8]} 18. f3 {[%clk 0:02:23.5]} 18... Rhd8 {[%clk 0:01:39.4]} 19. Rad1
{[%clk 0:02:23.6]} 19... a6 {[%clk 0:01:30.9]} 20. Kf2 {[%clk 0:02:24]} 20... g6
{[%clk 0:01:31.8]} 21. Ke2 {[%clk 0:02:24.9]} 21... e5 {[%clk 0:01:31.5]} 22.
Nc2 {[%clk 0:02:26]} 22... Rxd2+ {[%clk 0:01:29.7]} 23. Rxd2 {[%clk 0:02:27.9]}
23... Ke6 {[%clk 0:01:30.3]} 24. e4 {[%clk 0:02:28.2]} 24... Ne8 {[%clk
0:01:22.4]} 25. Ne3 {[%clk 0:02:24.5]} 25... Nd6 {[%clk 0:01:21.2]} 26. g4
{[%clk 0:02:19]} 26... Nb5 {[%clk 0:01:19.1]} 27. Nc4 {[%clk 0:02:15.9]} 27...
Nd4+ {[%clk 0:01:13.4]} 28. Ke3 {[%clk 0:02:14.9]} 28... b5 {[%clk 0:00:48.7]}
29. Nb6 {[%clk 0:02:10.8]} 29... Rc3+ {[%clk 0:00:46.7]} 30. Rd3 {[%clk
0:01:53.7]} 30... Rxd3+ {[%clk 0:00:46.5]} 31. Kxd3 {[%clk 0:01:54.4]} 31...
Nxf3 {[%clk 0:00:47.4]} 32. h3 {[%clk 0:01:54.4]} 32... Ng1 {[%clk 0:00:38.2]}
33. h4 {[%clk 0:01:54.8]} 33... h5 {[%clk 0:00:39.4]} 34. gxh5 {[%clk
0:01:54.1]} 34... gxh5 {[%clk 0:00:40.1]} 35. Ke3 {[%clk 0:01:55.4]} 35... Nh3
{[%clk 0:00:37.8]} 36. a4 {[%clk 0:01:52.4]} 36... Nf4 {[%clk 0:00:36.1]} 37.
Kf3 {[%clk 0:01:52.1]} 37... f5 {[%clk 0:00:33.4]} 38. axb5 {[%clk 0:01:47.9]}
38... axb5 {[%clk 0:00:32.2]} 39. b4 {[%clk 0:01:43.9]} 39... fxe4+ {[%clk
0:00:27.7]} 40. Kxe4 {[%clk 0:01:44.7]} 40... Ng6 {[%clk 0:00:28.6]} 41. Nd5
{[%clk 0:01:43.5]} 41... Nxh4 {[%clk 0:00:28.2]} 42. Nc7+ {[%clk 0:01:44.5]}
42... Kf6 {[%clk 0:00:26.5]} 43. Nxb5 {[%clk 0:01:46.4]} 43... Nf5 {[%clk
0:00:27]} 44. Nc3 {[%clk 0:01:42.5]} 44... h4 {[%clk 0:00:27.4]} 45. b5 {[%clk
0:01:40.2]} 45... Nd6+ {[%clk 0:00:27.8]} 46. Kf3 {[%clk 0:01:41.2]} 46... Kf5
{[%clk 0:00:24]} 47. b6 {[%clk 0:01:42]} 47... h3 {[%clk 0:00:19.2]} 48. Kg3
{[%clk 0:01:42.1]} 48... e4 {[%clk 0:00:18.8]} 49. Kxh3 {[%clk 0:01:34.2]} 49...
Kf4 {[%clk 0:00:18.9]} 50. Kg2 {[%clk 0:01:35.3]} 50... Ke3 {[%clk 0:00:19.7]}
51. Nd5+ {[%clk 0:01:26]} 51... Kd4 {[%clk 0:00:18.7]} 52. Nf6 {[%clk
0:01:27.2]} 52... Kc5 {[%clk 0:00:17.9]} 53. Nxe4+ {[%clk 0:01:24.6]} 53... Kxb6
{[%clk 0:00:17.9]} 54. Nxd6 {[%clk 0:01:25]} 1/2-1/2

[Event "*** Titled Tuesday Blitz"]
[Site "Chess.com"]
[Date "2019.03.05"]
[Round "8"]
[White "fyall777"]
[Black "mlchen"]
[Result "1-0"]
[WhiteElo "2321"]
[BlackElo "2403"]
[TimeControl "180+2"]
[EndTime "14:58:14 PST"]
[Termination "fyall777 won by resignation"]

1. e4 {[%clk 0:03:01.9]} 1... e5 {[%clk 0:03:00.8]} 2. Nf3 {[%clk 0:03:02.5]}
2... Nc6 {[%clk 0:03:02]} 3. Bc4 {[%clk 0:03:01.3]} 3... Bc5 {[%clk 0:03:02.4]}
4. O-O {[%clk 0:03:01.8]} 4... Nf6 {[%clk 0:03:02.5]} 5. d3 {[%clk 0:03:03]}
5... d6 {[%clk 0:03:03.4]} 6. c3 {[%clk 0:03:04.2]} 6... Bb6 {[%clk 0:03:02.7]}
7. Nbd2 {[%clk 0:03:01.7]} 7... O-O {[%clk 0:03:02.2]} 8. h3 {[%clk 0:02:59.2]}
8... h6 {[%clk 0:03:01.6]} 9. Re1 {[%clk 0:02:59.7]} 9... a6 {[%clk 0:02:55.5]}
10. Bb3 {[%clk 0:02:57.2]} 10... Be6 {[%clk 0:02:48.7]} 11. Nf1 {[%clk 0:02:50]}
11... Re8 {[%clk 0:02:47.6]} 12. Ng3 {[%clk 0:02:48.3]} 12... d5 {[%clk
0:02:47.1]} 13. Ba4 {[%clk 0:02:45.5]} 13... Bd7 {[%clk 0:02:36.7]} 14. exd5
{[%clk 0:02:23.9]} 14... Nxd5 {[%clk 0:02:35.7]} 15. Bxc6 {[%clk 0:02:25]} 15...
Bxc6 {[%clk 0:02:34.2]} 16. Nxe5 {[%clk 0:02:26.1]} 16... Qd6 {[%clk 0:01:55.5]}
17. d4 {[%clk 0:02:25]} 17... Qf6 {[%clk 0:01:46.5]} 18. Bd2 {[%clk 0:02:09.9]}
18... Rad8 {[%clk 0:01:24.8]} 19. Qg4 {[%clk 0:02:02.8]} 19... Qe6 {[%clk
0:00:57.5]} 20. Nh5 {[%clk 0:01:53.5]} 20... Qxg4 {[%clk 0:00:56]} 21. hxg4
{[%clk 0:01:53.3]} 21... Ne7 {[%clk 0:00:36.3]} 22. Nxc6 {[%clk 0:01:50]} 22...
Nxc6 {[%clk 0:00:37.1]} 23. g5 {[%clk 0:01:49.4]} 23... Rxe1+ {[%clk 0:00:28.3]}
24. Rxe1 {[%clk 0:01:47.9]} 24... hxg5 {[%clk 0:00:29.7]} 25. Bxg5 {[%clk
0:01:48.6]} 25... Rd5 {[%clk 0:00:29.8]} 26. f4 {[%clk 0:01:27.6]} 26... f6
{[%clk 0:00:29.7]} 27. Nxf6+ {[%clk 0:01:28.6]} 27... gxf6 {[%clk 0:00:29.9]}
28. Bxf6 {[%clk 0:01:29.8]} 28... Kf7 {[%clk 0:00:29.9]} 29. Bg5 {[%clk
0:01:28]} 29... Ne7 {[%clk 0:00:27.2]} 30. Rxe7+ {[%clk 0:01:26.5]} 30... Kg6
{[%clk 0:00:28]} 31. g4 {[%clk 0:01:27.5]} 31... Rb5 {[%clk 0:00:21.9]} 32. b4
{[%clk 0:01:25.6]} 32... a5 {[%clk 0:00:20.9]} 33. a3 {[%clk 0:01:26.6]} 33...
axb4 {[%clk 0:00:22]} 34. axb4 {[%clk 0:01:28]} 34... Rd5 {[%clk 0:00:23.3]} 35.
Kg2 {[%clk 0:01:26.8]} 35... Rd6 {[%clk 0:00:16.6]} 36. Kg3 {[%clk 0:01:24.1]}
36... Rc6 {[%clk 0:00:17.6]} 37. Kh4 {[%clk 0:01:24.5]} 37... Rf6 {[%clk
0:00:06]} 38. Bxf6 {[%clk 0:01:22.9]} 38... Kxf6 {[%clk 0:00:07.6]} 39. Rh7
{[%clk 0:01:20.1]} 39... Kg6 {[%clk 0:00:03.8]} 40. Rd7 {[%clk 0:01:20.9]} 40...
c6 {[%clk 0:00:02.9]} 41. Rxb7 {[%clk 0:01:20.7]} 41... Bd8+ {[%clk 0:00:04.1]}
42. Kg3 {[%clk 0:01:21.9]} 42... Bf6 {[%clk 0:00:04.8]} 43. Rc7 {[%clk
0:01:22.1]} 43... Kh6 {[%clk 0:00:04.2]} 44. g5+ {[%clk 0:01:21.9]} 44... Kg6
{[%clk 0:00:05.1]} 45. Rxc6 {[%clk 0:01:21.7]} 45... Kf5 {[%clk 0:00:06.1]} 46.
gxf6 {[%clk 0:01:20.5]} 46... Ke4 {[%clk 0:00:07.4]} 47. f7 {[%clk 0:01:21.7]}
47... Kd3 {[%clk 0:00:08.9]} 48. f8=Q {[%clk 0:01:22.7]} 48... Ke4 {[%clk
0:00:10.2]} 49. b5 {[%clk 0:01:23.1]} 49... Kd3 {[%clk 0:00:11.6]} 50. b6 {[%clk
0:01:24.3]} 50... Kc2 {[%clk 0:00:13.2]} 51. b7 {[%clk 0:01:25.5]} 51... Kd3
{[%clk 0:00:15.1]} 52. b8=Q {[%clk 0:01:26.6]} 52... Kc2 {[%clk 0:00:17]} 53. d5
{[%clk 0:01:27.8]} 53... Kd3 {[%clk 0:00:18.9]} 54. d6 {[%clk 0:01:29.1]} 54...
Kc2 {[%clk 0:00:20.8]} 55. d7 {[%clk 0:01:30.4]} 55... Kd3 {[%clk 0:00:22.7]}
56. d8=Q+ {[%clk 0:01:31.6]} 56... Kc2 {[%clk 0:00:24.6]} 57. f5 {[%clk
0:01:32.8]} 57... Kc1 {[%clk 0:00:25.7]} 58. f6 {[%clk 0:01:34.1]} 58... Kc2
{[%clk 0:00:27.6]} 59. f7 {[%clk 0:01:35.4]} 59... Kc1 {[%clk 0:00:29.5]} 60.
Qfe8 {[%clk 0:01:34.5]} 60... Kc2 {[%clk 0:00:31.4]} 61. f8=Q {[%clk 0:01:35]}
61... Kc1 {[%clk 0:00:33.3]} 62. c4 {[%clk 0:01:35.8]} 62... Kc2 {[%clk
0:00:35.2]} 63. c5 {[%clk 0:01:36.8]} 63... Kc1 {[%clk 0:00:37.1]} 64. Rf6
{[%clk 0:01:33.4]} 64... Kc2 {[%clk 0:00:39]} 65. Rf3 {[%clk 0:01:32.7]} 65...
Kc1 {[%clk 0:00:40.9]} 66. c6 {[%clk 0:01:31.3]} 66... Kc2 {[%clk 0:00:42.1]}
67. c7 {[%clk 0:01:32.3]} 1-0

[Event "*** Titled Tuesday Blitz"]
[Site "Chess.com"]
[Date "2019.03.05"]
[Round "8"]
[White "7Madman"]
[Black "Man-Chuk"]
[Result "0-1"]
[WhiteElo "2531"]
[BlackElo "2779"]
[TimeControl "180+2"]
[EndTime "14:58:22 PST"]
[Termination "Man-Chuk won by resignation"]

1. e4 {[%clk 0:03:01.9]} 1... c6 {[%clk 0:02:59.1]} 2. d4 {[%clk 0:03:02.4]}
2... d5 {[%clk 0:02:55.5]} 3. Nd2 {[%clk 0:03:04.1]} 3... dxe4 {[%clk
0:02:55.6]} 4. Nxe4 {[%clk 0:03:06]} 4... Bf5 {[%clk 0:02:56.9]} 5. Ng3 {[%clk
0:03:05.5]} 5... Bg6 {[%clk 0:02:58.2]} 6. h4 {[%clk 0:03:07]} 6... h6 {[%clk
0:02:57.7]} 7. Nf3 {[%clk 0:03:08.6]} 7... e6 {[%clk 0:02:58.1]} 8. h5 {[%clk
0:03:09.2]} 8... Bh7 {[%clk 0:02:58.7]} 9. Bd3 {[%clk 0:03:10.8]} 9... Bxd3
{[%clk 0:02:59]} 10. Qxd3 {[%clk 0:03:12.7]} 10... Nf6 {[%clk 0:02:59.8]} 11.
Bd2 {[%clk 0:03:14]} 11... c5 {[%clk 0:03:00.9]} 12. O-O-O {[%clk 0:03:11.3]}
12... Nc6 {[%clk 0:03:01.8]} 13. Qb5 {[%clk 0:03:05.6]} 13... Qb6 {[%clk
0:02:55.1]} 14. Qa4 {[%clk 0:02:35]} 14... cxd4 {[%clk 0:02:49.2]} 15. Rhe1
{[%clk 0:02:24.7]} 15... Be7 {[%clk 0:02:47.2]} 16. Ne4 {[%clk 0:02:15.9]} 16...
O-O {[%clk 0:02:41.4]} 17. g4 {[%clk 0:02:16.3]} 17... Nxe4 {[%clk 0:02:15]} 18.
Rxe4 {[%clk 0:02:15.5]} 18... Qc5 {[%clk 0:02:16]} 19. g5 {[%clk 0:02:04.1]}
19... hxg5 {[%clk 0:02:13]} 20. Nxd4 {[%clk 0:01:35.4]} 20... Nxd4 {[%clk
0:01:49.6]} 21. Qxd4 {[%clk 0:01:30.7]} 21... Qxd4 {[%clk 0:01:28.9]} 22. Rxd4
{[%clk 0:01:32.6]} 22... Rfd8 {[%clk 0:01:29.6]} 23. Bc3 {[%clk 0:01:16.6]}
23... Rxd4 {[%clk 0:01:24.9]} 24. Rxd4 {[%clk 0:01:18.4]} 24... Rd8 {[%clk
0:01:25.2]} 25. Rc4 {[%clk 0:01:17.1]} 25... Bd6 {[%clk 0:01:20.6]} 26. a4
{[%clk 0:01:06.9]} 26... Kh7 {[%clk 0:01:15.3]} 27. Bd2 {[%clk 0:00:51.4]} 27...
Kh6 {[%clk 0:00:58.3]} 28. Rd4 {[%clk 0:00:42.6]} 28... Kxh5 {[%clk 0:00:58.2]}
29. c4 {[%clk 0:00:36.5]} 29... f5 {[%clk 0:00:52.8]} 30. Kc2 {[%clk 0:00:35.7]}
30... Bc7 {[%clk 0:00:45.6]} 31. Be3 {[%clk 0:00:33.8]} 31... a6 {[%clk
0:00:41.8]} 32. Kd3 {[%clk 0:00:30.5]} 32... f4 {[%clk 0:00:34.5]} 33. Rxd8
{[%clk 0:00:23.5]} 33... Bxd8 {[%clk 0:00:36.4]} 34. Bd4 {[%clk 0:00:24]} 34...
g4 {[%clk 0:00:28.1]} 35. Ke4 {[%clk 0:00:25]} 35... g5 {[%clk 0:00:27]} 36. b4
{[%clk 0:00:25.8]} 36... Kh4 {[%clk 0:00:22.9]} 37. b5 {[%clk 0:00:26.8]} 37...
axb5 {[%clk 0:00:23.9]} 38. axb5 {[%clk 0:00:28.7]} 38... g3 {[%clk 0:00:20.4]}
39. Ke5 {[%clk 0:00:19.8]} 39... g2 {[%clk 0:00:17.6]} 40. f3 {[%clk 0:00:20.6]}
40... Kg3 {[%clk 0:00:18.6]} 41. Kxe6 {[%clk 0:00:22.1]} 41... g4 {[%clk
0:00:15.7]} 42. fxg4 {[%clk 0:00:17.4]} 42... f3 {[%clk 0:00:17.6]} 43. Kd7
{[%clk 0:00:15.6]} 43... f2 {[%clk 0:00:17.7]} 44. Kxd8 {[%clk 0:00:16.4]} 44...
f1=Q {[%clk 0:00:17.5]} 0-1

[Event "*** Titled Tuesday Blitz"]
[Site "Chess.com"]
[Date "2019.03.05"]
[Round "8"]
[White "Walter_White_Poland"]
[Black "Perecke"]
[Result "0-1"]
[WhiteElo "2172"]
[BlackElo "2051"]
[TimeControl "180+2"]
[EndTime "14:58:32 PST"]
[Termination "Perecke won on time"]

1. e4 {[%clk 0:03:01.9]} 1... e5 {[%clk 0:02:46.8]} 2. Nf3 {[%clk 0:03:01]} 2...
Nc6 {[%clk 0:02:46.6]} 3. Bb5 {[%clk 0:03:01.8]} 3... a6 {[%clk 0:02:46.7]} 4.
Ba4 {[%clk 0:03:03.3]} 4... Nf6 {[%clk 0:02:46.1]} 5. O-O {[%clk 0:03:04.3]}
5... Be7 {[%clk 0:02:46.6]} 6. Re1 {[%clk 0:03:04.1]} 6... b5 {[%clk 0:02:47.5]}
7. Bb3 {[%clk 0:03:05.5]} 7... d6 {[%clk 0:02:48.6]} 8. c3 {[%clk 0:03:05.8]}
8... O-O {[%clk 0:02:49.1]} 9. h3 {[%clk 0:03:07.2]} 9... Na5 {[%clk 0:02:49.4]}
10. Bc2 {[%clk 0:03:08.4]} 10... c5 {[%clk 0:02:50.7]} 11. d4 {[%clk 0:03:09.5]}
11... Qc7 {[%clk 0:02:51.6]} 12. d5 {[%clk 0:03:03.8]} 12... c4 {[%clk
0:02:51.6]} 13. Be3 {[%clk 0:02:53]} 13... Nd7 {[%clk 0:02:43.1]} 14. a4 {[%clk
0:02:50]} 14... Nc5 {[%clk 0:02:31.6]} 15. Nbd2 {[%clk 0:02:33.8]} 15... f5
{[%clk 0:02:24.5]} 16. exf5 {[%clk 0:02:31.1]} 16... Bxf5 {[%clk 0:02:06.4]} 17.
Bxf5 {[%clk 0:02:28.6]} 17... Rxf5 {[%clk 0:02:08.3]} 18. Bxc5 {[%clk
0:02:22.1]} 18... Qxc5 {[%clk 0:02:05.3]} 19. Ne4 {[%clk 0:02:15.5]} 19... Qb6
{[%clk 0:01:52.6]} 20. axb5 {[%clk 0:02:01.6]} 20... axb5 {[%clk 0:01:54.5]} 21.
Qc2 {[%clk 0:01:55.1]} 21... Raf8 {[%clk 0:01:33.2]} 22. Rad1 {[%clk 0:01:47.2]}
22... Nb7 {[%clk 0:01:28.9]} 23. b3 {[%clk 0:01:15.7]} 23... Nc5 {[%clk
0:01:07.1]} 24. bxc4 {[%clk 0:01:13.9]} 24... bxc4 {[%clk 0:01:07.9]} 25. Rb1
{[%clk 0:00:53]} 25... Qc7 {[%clk 0:00:58]} 26. Nxc5 {[%clk 0:00:49.9]} 26...
Qxc5 {[%clk 0:00:59.9]} 27. Rb7 {[%clk 0:00:38.6]} 27... Bh4 {[%clk 0:00:57.2]}
28. Re2 {[%clk 0:00:16.9]} 28... Rxf3 {[%clk 0:00:11.7]} 29. gxf3 {[%clk
0:00:12.8]} 29... Qxd5 {[%clk 0:00:13]} 30. Qe4 {[%clk 0:00:10.9]} 30... Qd1+
{[%clk 0:00:13]} 31. Kg2 {[%clk 0:00:11.7]} 31... Bf6 {[%clk 0:00:11.3]} 32. Rd7
{[%clk 0:00:05.1]} 32... Rb8 {[%clk 0:00:08.5]} 33. Qxc4+ {[%clk 0:00:05.4]}
33... Kh8 {[%clk 0:00:07.5]} 34. Rc7 {[%clk 0:00:05]} 34... Rg8 {[%clk
0:00:03.6]} 35. Rc8 {[%clk 0:00:05.2]} 35... Bd8 {[%clk 0:00:04.7]} 36. Re4
{[%clk 0:00:03.9]} 36... d5 {[%clk 0:00:05.4]} 37. Rxd8 {[%clk 0:00:02.1]} 37...
Rxd8 {[%clk 0:00:04.3]} 38. Qc7 {[%clk 0:00:02.9]} 38... dxe4 {[%clk 0:00:03.5]}
0-1

[Event "*** Titled Tuesday Blitz"]
[Site "Chess.com"]
[Date "2019.03.05"]
[Round "8"]
[White "Off-War"]
[Black "GM_dmitrij"]
[Result "1-0"]
[WhiteElo "2564"]
[BlackElo "2848"]
[TimeControl "180+2"]
[EndTime "14:58:34 PST"]
[Termination "Off-War won by resignation"]

1. d4 {[%clk 0:03:01.9]} 1... d5 {[%clk 0:02:58.8]} 2. c4 {[%clk 0:03:01.9]}
2... e6 {[%clk 0:03:00.1]} 3. Nc3 {[%clk 0:03:03.4]} 3... Bb4 {[%clk 0:03:00.6]}
4. Nf3 {[%clk 0:03:01]} 4... Nf6 {[%clk 0:03:01]} 5. Bg5 {[%clk 0:02:49.1]} 5...
dxc4 {[%clk 0:03:00.9]} 6. e4 {[%clk 0:02:44.6]} 6... b5 {[%clk 0:03:01.8]} 7.
a4 {[%clk 0:02:39.8]} 7... c5 {[%clk 0:02:56.2]} 8. axb5 {[%clk 0:02:37.8]} 8...
cxd4 {[%clk 0:02:55.7]} 9. Bxf6 {[%clk 0:02:29.8]} 9... Qxf6 {[%clk 0:02:55.7]}
10. Qxd4 {[%clk 0:02:19.9]} 10... Qxd4 {[%clk 0:02:53.5]} 11. Nxd4 {[%clk
0:02:21.8]} 11... Bb7 {[%clk 0:02:55.3]} 12. f3 {[%clk 0:02:14]} 12... Nd7
{[%clk 0:02:20.1]} 13. Bxc4 {[%clk 0:02:14.4]} 13... Rc8 {[%clk 0:02:20.1]} 14.
Nc6 {[%clk 0:01:53]} 14... Bxc6 {[%clk 0:02:19.5]} 15. bxc6 {[%clk 0:01:54.9]}
15... Rxc6 {[%clk 0:02:21.1]} 16. Rxa7 {[%clk 0:01:47.7]} 16... O-O {[%clk
0:01:39.8]} 17. Bb5 {[%clk 0:01:39.1]} 17... Rb6 {[%clk 0:01:32.5]} 18. Rxd7
{[%clk 0:01:35.6]} 18... Rxb5 {[%clk 0:01:33.5]} 19. Ke2 {[%clk 0:01:36]} 19...
Rb6 {[%clk 0:01:30.4]} 20. Rhd1 {[%clk 0:01:28]} 20... Ba5 {[%clk 0:01:23.9]}
21. Na4 {[%clk 0:01:27.4]} 21... Rbb8 {[%clk 0:01:20.9]} 22. R1d3 {[%clk
0:01:23.9]} 22... g6 {[%clk 0:01:19.2]} 23. b3 {[%clk 0:01:23.3]} 23... Bb4
{[%clk 0:01:11.3]} 24. f4 {[%clk 0:01:18.7]} 24... Rfc8 {[%clk 0:01:10]} 25. Kf3
{[%clk 0:01:15.3]} 25... Rc1 {[%clk 0:01:07.9]} 26. Rd8+ {[%clk 0:01:11.9]}
26... Rxd8 {[%clk 0:01:08.5]} 27. Rxd8+ {[%clk 0:01:13.8]} 27... Kg7 {[%clk
0:01:10.4]} 28. Rb8 {[%clk 0:01:13.1]} 28... Bd6 {[%clk 0:01:07.9]} 29. Rd8
{[%clk 0:01:04.1]} 29... Bc7 {[%clk 0:00:53.2]} 30. Rd7 {[%clk 0:01:04.1]} 30...
Kf8 {[%clk 0:00:49.2]} 31. e5 {[%clk 0:01:01.7]} 31... Ke8 {[%clk 0:00:48.1]}
32. Rd4 {[%clk 0:01:01.1]} 32... Rb1 {[%clk 0:00:41.8]} 33. Rd3 {[%clk
0:00:56.3]} 33... g5 {[%clk 0:00:38.4]} 34. fxg5 {[%clk 0:00:54.7]} 34... Bxe5
{[%clk 0:00:38.4]} 35. h4 {[%clk 0:00:55.8]} 35... Rh1 {[%clk 0:00:28.9]} 36.
Kg4 {[%clk 0:00:54.1]} 36... Ke7 {[%clk 0:00:21.3]} 37. Nc5 {[%clk 0:00:54.9]}
37... Rc1 {[%clk 0:00:19.9]} 38. Ne4 {[%clk 0:00:36.6]} 38... Re1 {[%clk
0:00:20.7]} 39. Nc5 {[%clk 0:00:35.9]} 39... Bd6 {[%clk 0:00:18.6]} 40. Nb7
{[%clk 0:00:31.6]} 40... Bb4 {[%clk 0:00:19.5]} 41. Rd4 {[%clk 0:00:31.1]} 41...
Bc3 {[%clk 0:00:16.1]} 42. Rc4 {[%clk 0:00:32.3]} 42... Be5 {[%clk 0:00:16.9]}
43. Nc5 {[%clk 0:00:33.9]} 43... Re3 {[%clk 0:00:16.2]} 44. Kh5 {[%clk
0:00:33.7]} 44... Kf8 {[%clk 0:00:13.5]} 45. Re4 {[%clk 0:00:32]} 45... Rxe4
{[%clk 0:00:10.6]} 46. Nxe4 {[%clk 0:00:33.9]} 46... Kg7 {[%clk 0:00:09.8]} 47.
b4 {[%clk 0:00:34.3]} 47... Bd4 {[%clk 0:00:10.4]} 48. b5 {[%clk 0:00:35.4]}
48... Bb6 {[%clk 0:00:11.8]} 49. Nf6 {[%clk 0:00:34.4]} 49... Bc7 {[%clk
0:00:11.1]} 50. Nd7 {[%clk 0:00:35.2]} 1-0